[Event "World Junior U20 Open 2018"]
[Site "Gebze"]
[Date "2018.09.11"]
[Round "7.67"]
[White "Ozturk, Efe Hakan"]
[Black "Wong, Yinn Long"]
[Result "0-1"]
[ECO "A04"]
[WhiteElo "2065"]
[BlackElo "2261"]
[Annotator "NA"]
[PlyCount "106"]
[EventDate "2018.09.05"]
[EventType "swiss"]
[EventCountry "TUR"]
[SourceTitle "playchess.com"]
[Source "ChessBase"]
[SourceQuality "1"]
[TimeControl "40/5400+30:1800+30"]

1. Nf3 {[%emt 0:00:30]} c5 {[%emt 0:00:30]} 2. g3 {[%emt 0:00:00]} g6 {[%emt 0:00:30]} 3. Bg2 {[%emt 0:01:00]} Bg7 {[%emt 0:00:30]} 4. d4 {[%emt 0:00:00]} cxd4 {[%emt 0:00:30]} 5. Nxd4 {[%emt 0:00:00]} Nc6 {[%emt 0:00:30]} 6. Nxc6 {[%emt 0:00:30]} bxc6 {[%emt 0:00:30]} 7. O-O {[%emt 0:00:00]} Rb8 {[%emt 0:01:30]} 8. Nd2 {[%emt 0:00:00] A04: Unusual lines after 1 Nf3 and King's Indian Attack} (8. Nc3 Nf6 9. e4 O-O 10. Re1 d6 11. e5 Ng4 12. exd6 exd6 13. h3 Ne5 14. b3 Bf5 15. Bd2 h5 {½-½ (45) Ponomariov,R (2739)-Gashimov,V (2758) Khanty-Mansiysk 2009}) 8... c5 {[%emt 0:03:30]} 9. c3 {[%emt 0:14:30]} Nf6 {[%emt 0:08:30]} 10. e4 {[%emt 0:06:30]} O-O {[%emt 0:04:30]} 11. Qa4 {[%emt 0:06:30]} Qc7 {[%emt 0:05:30]} 12. Nc4 $146 {[%emt 0:08:30]} ({Predecessor:} 12. Re1 d6 13. Nf3 Nd7 14. Qc2 Bb7 15. Bf4 Bc6 16. Rab1 {0-1 (91) Shi,K (2192)-Bai,J (2537) Shenzhen 2016}) 12... d6 {[%emt 0:02:30]} 13. Re1 {[%emt 0:03:30]} Nd7 {[%emt 0:08:30]} 14. Ne3 {[%emt 0:08:30]} e6 {[%emt 0:03:30]} 15. f4 {[%emt 0:04:30]} f5 {[%emt 0:09:30]} 16. exf5 {[%emt 0:11:30]} gxf5 {[%emt 0:00:30]} 17. g4 {[%emt 0:00:30]} fxg4 {[%emt 0:13:30]} 18. Nxg4 {[%emt 0:00:30]} Nf6 {[%emt 0:01:30]} 19. Nf2 $17 {[%emt 0:10:30]} Kh8 {[%emt 0:03:30]} 20. Nh3 {[%emt 0:03:24]} Bb7 {[%emt 0:09:30]} 21. Re2 {[%emt 0:08:17]} Bxg2 {[%emt 0:06:49]} 22. Rxg2 {[%emt 0:00:18]} Rbe8 {[%emt 0:04:01]} 23. Bd2 {[%emt 0:04:19]} d5 {[%emt 0:05:31]} 24. Kh1 {[%emt 0:05:06]} Ne4 {[%emt 0:00:37]} 25. Be3 {[%emt 0:00:39]} Bf6 {[%emt 0:01:03]} 26. Rag1 {[%emt 0:01:10]} Rd8 {[%emt 0:03:09]} 27. Ng5 {[%emt 0:00:00]} Bxg5 {[%emt 0:02:23]} 28. fxg5 {[%emt 0:00:00]} Rf3 {[%emt 0:00:30]} 29. Qd1 {[%emt 0:00:00]} Rxe3 {[%emt 0:00:30]} 30. Qh5 {[%emt 0:00:00]} Qg7 {[%emt 0:00:30]} 31. g6 {[%emt 0:00:00]} Nf6 {[%emt 0:00:30]} 32. Qh4 {[%emt 0:00:00]} Re4 {[%emt 0:00:30]} 33. Qf2 {[%emt 0:00:00]} h6 {[%emt 0:00:30]} 34. Qxc5 {[%emt 0:00:00]} Kg8 {[%emt 0:00:30]} 35. b4 {[%emt 0:00:00]} Rc4 {[%emt 0:00:30]} 36. Qe3 {[%emt 0:00:00]} Re4 {[%emt 0:00:30]} 37. Qh3 {[%emt 0:00:00]} Rf8 {[%emt 0:00:30]} 38. Rf2 {[%emt 0:00:00]} h5 {[%emt 0:00:30]} 39. Rgf1 {[%emt 0:00:00]} Qxg6 {[%emt 0:00:30]} 40. Rf4 {[%emt 0:00:00]} Rxf4 {[%emt 0:00:30]} 41. Qxe6+ {[%emt 0:08:47]} Kh7 {[%emt 0:05:27]} 42. Rxf4 {[%emt 0:00:30]} Re8 {[%emt 0:00:30]} 43. Qa6 {[%emt 0:01:30]} Re1+ {[%emt 0:01:30]} 44. Rf1 {[%emt 0:00:30]} Qe4+ {[%emt 0:00:30]} 45. Kg1 {[%emt 0:00:00]} Qe3+ {[%emt 0:00:30]} 46. Kh1 {[%emt 0:00:00]} Qf3+ {[%emt 0:01:30]} 47. Kg1 {[%emt 0:00:30]} Rxf1+ {[%emt 0:02:30]} 48. Qxf1 {[%emt 0:00:00]} Qxf1+ {[%emt 0:01:30]} 49. Kxf1 {[%emt 0:00:00]} Ne4 {[%emt 0:00:00]} 50. a3 {[%emt 0:01:30]} Nxc3 {[%emt 0:00:00]} 51. Kf2 {[%emt 0:00:00]} d4 {[%emt 0:00:30]} 52. Kf3 {[%emt 0:00:00]} Kg6 {[%emt 0:00:30]} 53. a4 {[%emt 0:00:00]} Kf5 {[%emt 0:00:00]} 0-1

[Event "World Junior U20 Open 2018"]
[Site "Gebze"]
[Date "2018.09.11"]
[Round "7.68"]
[White "Gulden, Egemen"]
[Black "Yilmaz, Goktan"]
[Result "0-1"]
[ECO "B26"]
[WhiteElo "2068"]
[BlackElo "2237"]
[Annotator "NA"]
[PlyCount "104"]
[EventDate "2018.09.05"]
[EventType "swiss"]
[EventCountry "TUR"]
[SourceTitle "playchess.com"]
[Source "ChessBase"]
[SourceQuality "1"]
[TimeControl "40/5400+30:1800+30"]

1. e4 {[%emt 0:00:30]} c5 {[%emt 0:00:30]} 2. Nc3 {[%emt 0:03:30]} d6 {[%emt 0:00:30]} 3. g3 {[%emt 0:00:00]} Nc6 {[%emt 0:00:30]} 4. Bg2 {[%emt 0:00:00]} g6 {[%emt 0:00:00]} 5. d3 {[%emt 0:00:00]} Bg7 {[%emt 0:00:00]} 6. Be3 {[%emt 0:00:00]} Rb8 {[%emt 0:00:00]} 7. f4 {[%emt 0:00:00]} e6 {[%emt 0:04:00]} 8. Qd2 {[%emt 0:01:00]} Nge7 {[%emt 0:03:30]} 9. Nh3 {[%emt 0:01:30] B26: Closed Sicilian: 3 g3, lines with early Be3} (9. Nf3 b5 10. a3 a5 11. Nd1 b4 12. axb4 axb4 13. h4 h5 14. O-O O-O 15. Rb1 Ra8 16. Nf2 Ra2 17. d4 {½-½ (39) Seirawan,Y (2643)-Karpov,A (2615) Saint Louis 2012}) 9... b5 {[%emt 0:05:30]} 10. O-O {[%emt 0:00:30]} b4 {[%emt 0:02:30]} 11. Nd1 {[%emt 0:00:00]} O-O {[%emt 0:01:30]} 12. c3 {[%emt 0:11:00]} bxc3 $146 {[%emt 0:01:30]} ({Predecessor:} 12... f5 13. Kh1 Bb7 {0-1 (31) Bershad,N-Miralaie,M San Pedro 2006}) 13. bxc3 {[%emt 0:00:00]} Qa5 {[%emt 0:00:30]} 14. Rc1 {[%emt 0:01:00]} Rd8 {[%emt 0:17:30]} 15. f5 {[%emt 0:18:30]} exf5 {[%emt 0:00:30]} 16. Bh6 {[%emt 0:00:30]} Ne5 {[%emt 0:07:30]} 17. Bxg7 {[%emt 0:04:30]} Kxg7 {[%emt 0:00:30]} 18. Ne3 {[%emt 0:00:30]} fxe4 {[%emt 0:06:30]} 19. dxe4 {[%emt 0:01:30]} Be6 {[%emt 0:08:30]} 20. Qf2 {[%emt 0:13:30] [#]} Ng8 $1 {[%emt 0:03:30]} ({Inferior is} 20... Qxa2 21. Qf6+ Kg8 22. Qxe7 $16) 21. Nf5+ {[%emt 0:10:30]} gxf5 {[%emt 0:05:30]} 22. exf5 {[%emt 0:00:00]} Bc4 {[%emt 0:02:30]} 23. f6+ {[%emt 0:02:00]} Kf8 {[%emt 0:02:30]} 24. Rfe1 {[%emt 0:08:30]} Qxa2 {[%emt 0:02:30]} 25. Rc2 {[%emt 0:02:30]} Qa4 {[%emt 0:01:30]} 26. Rd2 {[%emt 0:07:23]} Nd3 {[%emt 0:07:14]} 27. Ng5 $19 {[%emt 0:04:57]} Nxe1 {[%emt 0:03:43]} 28. Nxh7+ {[%emt 0:05:34]} Ke8 {[%emt 0:00:01]} 29. Qxe1+ {[%emt 0:01:38]} Kd7 {[%emt 0:01:33]} 30. Qe4 {[%emt 0:01:32]} Re8 {[%emt 0:02:13]} 31. Qf4 {[%emt 0:01:02]} Rb1+ {[%emt 0:02:15]} 32. Kf2 {[%emt 0:00:10]} Rb6 {[%emt 0:00:00]} 33. Ng5 {[%emt 0:00:44]} Qb5 {[%emt 0:05:00]} 34. Ne4 {[%emt 0:00:52]} Rxe4 {[%emt 0:03:38]} 35. Bxe4 {[%emt 0:00:15]} Be6 {[%emt 0:00:24]} 36. Qg5 {[%emt 0:00:49]} Qc4 {[%emt 0:00:41]} 37. Bh7 {[%emt 0:00:28]} Qxc3 {[%emt 0:01:05]} 38. Bxg8 {[%emt 0:00:18]} Rb2 {[%emt 0:01:02]} 39. Rxb2 {[%emt 0:00:56]} Qxb2+ {[%emt 0:00:01]} 40. Kg1 {[%emt 0:00:52]} Qd4+ {[%emt 0:00:00]} 41. Kg2 {[%emt 0:00:30]} Qd5+ {[%emt 0:01:10]} 42. Qxd5 {[%emt 0:00:30]} Bxd5+ {[%emt 0:00:30]} 43. Kf2 {[%emt 0:00:30]} a5 {[%emt 0:00:30]} 44. Ke3 {[%emt 0:02:30]} a4 {[%emt 0:01:30]} 45. Kd2 {[%emt 0:00:30]} a3 {[%emt 0:00:00]} 46. Kc3 {[%emt 0:00:00]} a2 {[%emt 0:00:00]} 47. Kb2 {[%emt 0:00:00]} Ke6 {[%emt 0:00:30]} 48. Bh7 {[%emt 0:00:00]} Kxf6 {[%emt 0:00:00]} 49. h4 {[%emt 0:00:00]} Bb3 {[%emt 0:01:00]} 50. g4 {[%emt 0:01:30]} c4 {[%emt 0:00:30]} 51. g5+ {[%emt 0:00:30]} Kg7 {[%emt 0:00:00]} 52. Be4 {[%emt 0:00:30]} c3+ {[%emt 0:00:00]} 0-1

[Event "World Junior U20 Open 2018"]
[Site "Gebze"]
[Date "2018.09.11"]
[Round "7.69"]
[White "Samani, Yamac"]
[Black "Cansun, Can Alp"]
[Result "1-0"]
[ECO "B42"]
[WhiteElo "2226"]
[BlackElo "2110"]
[Annotator "ChessBase"]
[PlyCount "51"]
[EventDate "2018.09.05"]
[EventType "swiss"]
[EventCountry "TUR"]
[SourceTitle "playchess.com"]
[Source "ChessBase"]
[SourceQuality "1"]
[TimeControl "40/5400+30:1800+30"]

1. e4 {[%emt 0:00:30]} c5 {[%emt 0:00:30]} 2. Nf3 {[%emt 0:00:30]} e6 {[%emt 0:00:30]} 3. d4 {[%emt 0:00:00]} cxd4 {[%emt 0:00:00]} 4. Nxd4 {[%emt 0:00:00]} a6 {[%emt 0:00:00]} 5. Bd3 {[%emt 0:00:30]} Nf6 {[%emt 0:00:00]} 6. O-O {[%emt 0:01:30]} Qc7 {[%emt 0:00:00]} 7. Qe2 {[%emt 0:00:30]} d6 {[%emt 0:00:00]} 8. f4 {[%emt 0:00:30]} Nbd7 {[%emt 0:01:00]} 9. c4 {[%emt 0:00:30]} Be7 {[%emt 0:12:30]} 10. Nc3 {[%emt 0:01:30]} b6 {[%emt 0:00:00]} 11. f5 {[%emt 0:03:30]} Ne5 {[%emt 0:03:00]} 12. Kh1 {[%emt 0:03:30]} Bd7 {[%emt 0:04:30]} 13. Bd2 {[%emt 0:03:30]} Rc8 {[%emt 0:03:30]} 14. b3 {[%emt 0:01:30]} h5 {[%emt 0:09:30]} 15. fxe6 {[%emt 0:15:30]} fxe6 {[%emt 0:00:30]} 16. Nf3 {[%emt 0:02:30]} Nfg4 {[%emt 0:09:30]} 17. Rac1 {[%emt 0:05:30]} Bf6 {[%emt 0:07:30]} 18. Bf4 {[%emt 0:04:30]} Qc5 {[%emt 0:09:30]} 19. Bb1 {[%emt 0:07:30]} Ke7 {[%emt 0:22:58]} 20. Qd2 {[%emt 0:16:30]} a5 {[%emt 0:06:44]} 21. Rcd1 {[%emt 0:04:30]} Rcd8 {[%emt 0:01:56]} 22. h3 {[%emt 0:05:30]} Bc6 {[%emt 0:05:01]} 23. Nd4 {[%emt 0:04:08]} Nh6 {[%emt 0:02:03]} 24. Be3 {[%emt 0:01:47]} Nxc4 {[%emt 0:00:44]} 25. bxc4 {[%emt 0:00:58]} Qxc4 {[%emt 0:00:11]} 26. Bd3 {[%emt 0:03:13]} 1-0

[Event "World Junior U20 Open 2018"]
[Site "Gebze"]
[Date "2018.09.11"]
[Round "7.70"]
[White "Lin, Peisen"]
[Black "Silva, David"]
[Result "0-1"]
[ECO "C79"]
[WhiteElo "2034"]
[BlackElo "2223"]
[Annotator "NA"]
[PlyCount "71"]
[EventDate "2018.09.05"]
[EventType "swiss"]
[EventCountry "TUR"]
[SourceTitle "playchess.com"]
[Source "ChessBase"]
[SourceQuality "1"]
[TimeControl "40/5400+30:1800+30"]

1. e4 {[%emt 0:00:30]} e5 {[%emt 0:00:30]} 2. Nf3 {[%emt 0:00:00]} Nc6 {[%emt 0:00:30]} 3. Bb5 {[%emt 0:00:00]} a6 {[%emt 0:02:30]} 4. Ba4 {[%emt 0:00:30]} d6 {[%emt 0:06:30] LiveBook: 3861 Games} 5. O-O {[%emt 0:00:30]} Bd7 {[%emt 0:03:30]} 6. c3 {[%emt 0:01:30]} Nf6 {[%emt 0:00:30]} 7. Re1 {[%emt 0:00:30]} g6 {[%emt 0:01:30]} 8. d4 {[%emt 0:00:30]} Qe7 {[%emt 0:02:30]} 9. Nbd2 {[%emt 0:02:30]} Bg7 {[%emt 0:00:30]} 10. Nf1 {[%emt 0:03:30]} O-O {[%emt 0:00:30]} 11. Ne3 {[%emt 0:09:30] C79: Ruy Lopez: Steinitz-type lines with 3...a6 4 Ba4 Nf6 5 0-0 d6} b5 {[%emt 0:04:30]} 12. Bc2 {[%emt 0:00:30]} h6 $146 {[%emt 0:01:30]} ({Predecessor:} 12... exd4 13. cxd4 Nb4 14. Bb3 a5 15. a3 Na6 16. e5 dxe5 17. dxe5 Ng4 18. e6 Nxe3 19. exf7+ Kh8 20. Bxe3 Be6 21. Bg5 Bxb3 22. Bxe7 Bxd1 23. Bxf8 Bxf3 24. Bxg7+ Kxg7 25. gxf3 {1-0 (25) Findlay,I (2410)-Witt,L (2340) Toronto 1987}) 13. Nd5 {[%emt 0:09:30]} Qd8 {[%emt 0:00:00]} 14. dxe5 {[%emt 0:01:30]} Nxd5 {[%emt 0:01:00]} 15. Qxd5 {[%emt 0:04:30]} Nxe5 {[%emt 0:03:30]} 16. Nxe5 {[%emt 0:00:30]} Bxe5 {[%emt 0:01:30]} 17. f4 {[%emt 0:05:30]} Bf6 {[%emt 0:02:30]} 18. Be3 {[%emt 0:03:30]} Qe8 {[%emt 0:05:30]} 19. Qd2 {[%emt 0:12:30]} Bc6 {[%emt 0:01:30]} 20. Bd4 {[%emt 0:07:30]} Qe7 {[%emt 0:03:30]} 21. Re3 {[%emt 0:01:30]} Rad8 {[%emt 0:02:30]} 22. Rae1 {[%emt 0:02:30]} Bd7 {[%emt 0:06:30]} 23. Rf3 {[%emt 0:08:30]} Rfe8 {[%emt 0:02:30]} 24. Ref1 {[%emt 0:07:07]} Bc6 {[%emt 0:00:30]} 25. Re3 {[%emt 0:02:44]} Bb7 {[%emt 0:02:30]} 26. Qe2 {[%emt 0:04:38]} Ba8 {[%emt 0:06:30]} 27. Bxf6 {[%emt 0:05:24]} Qxf6 {[%emt 0:00:30]} 28. h3 {[%emt 0:04:29]} Re7 {[%emt 0:00:30]} 29. g3 {[%emt 0:00:50]} Rde8 {[%emt 0:00:30]} 30. Re1 {[%emt 0:00:04]} Qe6 {[%emt 0:01:30]} 31. Kh2 $17 {[%emt 0:01:37]} Qxa2 {[%emt 0:00:30]} 32. Bb1 {[%emt 0:00:48]} Qe6 {[%emt 0:00:30]} 33. b4 {[%emt 0:00:38]} Qf6 {[%emt 0:02:30]} 34. Ba2 {[%emt 0:00:36]} Rxe4 {[%emt 0:01:30]} 35. Rxe4 {[%emt 0:00:27]} Rxe4 {[%emt 0:00:30]} 36. Qd1 {[%emt 0:00:54]} 0-1

[Event "World Junior U20 Open 2018"]
[Site "Gebze"]
[Date "2018.09.11"]
[Round "7.72"]
[White "Daghan, Devran"]
[Black "Eren, Ataberk"]
[Result "0-1"]
[ECO "C11"]
[WhiteElo "2004"]
[BlackElo "2180"]
[Annotator "NA"]
[PlyCount "124"]
[EventDate "2018.09.05"]
[EventType "swiss"]
[EventCountry "TUR"]
[SourceTitle "playchess.com"]
[Source "ChessBase"]
[SourceQuality "1"]
[TimeControl "40/5400+30:1800+30"]

1. e4 {[%emt 0:00:30]} e6 {[%emt 0:00:30]} 2. d4 {[%emt 0:00:30]} d5 {[%emt 0:00:30]} 3. Nc3 {[%emt 0:00:00]} Nf6 {[%emt 0:01:30]} 4. e5 {[%emt 0:00:00]} Nfd7 {[%emt 0:00:00]} 5. f4 {[%emt 0:00:00]} c5 {[%emt 0:00:00]} 6. Nf3 {[%emt 0:00:00]} Nc6 {[%emt 0:00:30]} 7. Be3 {[%emt 0:00:30]} Be7 {[%emt 0:00:00]} 8. Qd2 {[%emt 0:00:30]} a6 {[%emt 0:00:00]} 9. dxc5 {[%emt 0:00:00]} Nxc5 {[%emt 0:00:00] C11: French: Classical System: 4 e5 and 4 Bg5 dxe4} 10. O-O-O {[%emt 0:00:00]} b5 {[%emt 0:00:00]} (10... Qa5 11. Kb1 b5 12. h4 Bd7 13. g4 b4 14. Ne2 Ne4 15. Qe1 Rb8 16. Nc1 Nc3+ 17. bxc3 bxc3+ {1-0 (96) Najer,E (2679)-Korobov,A (2695) Poikovsky 2017}) 11. Bxc5 {[%emt 0:00:30]} Bxc5 {[%emt 0:00:30]} 12. Bd3 {[%emt 0:00:00]} g6 $146 {[%emt 0:02:30]} ({Predecessor:} 12... Bd7 13. Ne2 Nb4 14. Kb1 Qb6 15. h4 a5 16. Rh3 Be3 17. Qe1 Nxd3 18. cxd3 {1-0 (45) Merry,A (2422)-Olarasu,I (2058) London 2017}) 13. Ne2 {[%emt 0:25:00]} Qb6 {[%emt 0:11:30]} 14. Kb1 {[%emt 0:00:30]} Be3 {[%emt 0:00:30]} 15. Qe1 {[%emt 0:00:30]} Bf2 {[%emt 0:02:30]} 16. Qd2 {[%emt 0:01:30]} b4 {[%emt 0:04:30]} 17. g4 {[%emt 0:07:30]} Qe3 {[%emt 0:06:30]} 18. Qxe3 {[%emt 0:14:30]} Bxe3 {[%emt 0:00:30]} 19. g5 {[%emt 0:26:30]} h5 {[%emt 0:02:30]} 20. h4 {[%emt 0:00:30]} Ke7 {[%emt 0:00:30]} 21. Rh3 {[%emt 0:00:30]} Rd8 {[%emt 0:02:30]} 22. Nd2 {[%emt 0:03:12]} Bb6 {[%emt 0:04:30]} 23. c4 {[%emt 0:04:37]} bxc3 {[%emt 0:20:30]} 24. Nxc3 {[%emt 0:00:06]} Bd7 {[%emt 0:00:30]} 25. Nb3 {[%emt 0:04:04]} Na5 {[%emt 0:02:30]} 26. Nxa5 {[%emt 0:00:58]} Bxa5 {[%emt 0:00:30]} 27. Bc2 {[%emt 0:00:08]} Rab8 {[%emt 0:00:00]} 28. Ne2 {[%emt 0:05:16]} Bb4 {[%emt 0:03:00]} 29. Bd3 {[%emt 0:05:18]} a5 {[%emt 0:00:30]} 30. Rc1 {[%emt 0:00:36]} a4 {[%emt 0:03:30]} 31. Rh2 {[%emt 0:01:04]} Rdc8 {[%emt 0:04:30]} 32. Rxc8 {[%emt 0:00:45]} Rxc8 {[%emt 0:00:30]} 33. Rh1 {[%emt 0:00:16]} Bd2 {[%emt 0:00:30]} 34. Rd1 {[%emt 0:01:03]} Be3 {[%emt 0:00:00]} 35. b3 {[%emt 0:00:03]} a3 {[%emt 0:02:00]} 36. Ba6 {[%emt 0:00:25]} Ra8 {[%emt 0:02:30]} 37. Bd3 {[%emt 0:00:16]} Rb8 {[%emt 0:01:30]} 38. Kc2 {[%emt 0:00:30]} Rc8+ {[%emt 0:00:30]} 39. Kb1 {[%emt 0:00:01]} Bf2 {[%emt 0:00:30]} 40. Rh1 {[%emt 0:00:00]} d4 {[%emt 0:00:00]} 41. Bc4 {[%emt 0:08:22]} Bc6 {[%emt 0:01:00]} 42. Rf1 {[%emt 0:08:34]} Be4+ {[%emt 0:00:30]} 43. Kc1 {[%emt 0:01:41]} Be3+ {[%emt 0:00:30]} 44. Kd1 {[%emt 0:00:01]} Bg2 {[%emt 0:00:30]} 45. Rg1 {[%emt 0:00:36]} Bxg1 {[%emt 0:01:30]} 46. Nxg1 {[%emt 0:00:30]} Bd5 {[%emt 0:00:30]} 47. Bxd5 {[%emt 0:00:30]} exd5 {[%emt 0:00:30]} 48. Ne2 {[%emt 0:00:00]} d3 {[%emt 0:08:30]} 49. Nd4 {[%emt 0:00:08]} Kd7 {[%emt 0:00:30]} 50. Kd2 {[%emt 0:00:00]} Rc5 {[%emt 0:00:30]} 51. Kd1 {[%emt 0:00:31]} Kc8 {[%emt 0:00:30]} 52. Kd2 {[%emt 0:00:51]} Kb7 {[%emt 0:00:00]} 53. Kd1 {[%emt 0:00:52]} Ka6 {[%emt 0:00:00]} 54. Kd2 {[%emt 0:00:23]} Ka5 {[%emt 0:00:30]} 55. Kxd3 {[%emt 0:08:38]} Rc1 {[%emt 0:00:30]} 56. f5 {[%emt 0:01:30]} gxf5 {[%emt 0:01:30]} 57. Nxf5 {[%emt 0:01:49]} Ra1 {[%emt 0:07:30]} 58. Ne3 {[%emt 0:03:27]} Rxa2 {[%emt 0:06:30]} 59. g6 $19 {[%emt 0:02:46]} fxg6 {[%emt 0:00:00]} 60. Nc2 {[%emt 0:00:08]} Kb6 {[%emt 0:12:00]} 61. b4 {[%emt 0:00:31]} Kc7 {[%emt 0:00:30]} 62. Kc3 {[%emt 0:00:02]} d4+ {[%emt 0:00:00]} 0-1

[Event "World Junior U20 Open 2018"]
[Site "Gebze"]
[Date "2018.09.11"]
[Round "7.75"]
[White "Caglar, Ahmet Ata"]
[Black "Taalaibekov, Tagir"]
[Result "1-0"]
[ECO "B43"]
[WhiteElo "2071"]
[BlackElo "2291"]
[Annotator "NA"]
[PlyCount "137"]
[EventDate "2018.09.05"]
[EventType "swiss"]
[EventCountry "TUR"]
[SourceTitle "playchess.com"]
[Source "ChessBase"]
[SourceQuality "1"]
[TimeControl "40/5400+30:1800+30"]

1. e4 {[%emt 0:00:30]} c5 {[%emt 0:00:30]} 2. Nf3 {[%emt 0:00:00]} e6 {[%emt 0:00:00]} 3. d4 {[%emt 0:01:00]} cxd4 {[%emt 0:00:00]} 4. Nxd4 {[%emt 0:00:30]} a6 {[%emt 0:00:00]} 5. Nc3 {[%emt 0:00:00]} Qc7 {[%emt 0:00:00]} 6. g3 {[%emt 0:00:00]} b5 {[%emt 0:00:30]} 7. Bg2 {[%emt 0:00:30]} Bb7 {[%emt 0:00:30]} 8. O-O {[%emt 0:00:00]} d6 {[%emt 0:00:30]} 9. Re1 {[%emt 0:01:00]} Nf6 {[%emt 0:00:30]} 10. Nd5 {[%emt 0:03:30]} exd5 {[%emt 0:11:30]} 11. exd5+ {[%emt 0:00:30]} Kd8 {[%emt 0:00:30]} ({Avoid the trap} 11... Be7 $2 12. Nf5 $18) 12. Bg5 {[%emt 0:01:30] LiveBook: 3 Games} Nbd7 {[%emt 0:00:30] [#]} 13. Nc6+ $1 {[%emt 0:06:30] B43: Sicilian: Kan Variation: 5 Nc3} ({And not} 13. Qe2 Ne5 $11) 13... Bxc6 {[%emt 0:02:30]} 14. dxc6 {[%emt 0:00:30]} Nc5 {[%emt 0:00:30]} 15. a4 {[%emt 0:05:30]} ({And not} 15. Qe2 Be7 $11) 15... b4 {[%emt 0:06:30]} (15... bxa4 16. Be3 Ne6 17. Rxa4 Be7 18. b4 Qb8 19. c4 Kc7 20. Qe2 Re8 {1-0 (51) Perez Mitjans,O (2414)-Vasquez Schroder,R (2551) Barcelona 2014}) 16. Qd4 {[%emt 0:06:30]} Be7 {[%emt 0:02:30]} 17. Qxb4 $146 {[%emt 0:01:30]} ({Predecessor:} 17. Qc4) 17... Ne6 {[%emt 0:11:30]} 18. Be3 {[%emt 0:03:30]} Rb8 {[%emt 0:02:30]} 19. Qc3 {[%emt 0:03:30]} Ng4 {[%emt 0:08:30]} (19... d5 $5 {[%cal Re7b4]} 20. Red1 Ke8 $15) 20. Bd2 {[%emt 0:05:30]} h5 {[%emt 0:16:30]} 21. h3 {[%emt 0:06:30]} Nf6 {[%emt 0:01:30]} 22. b4 $16 {[%emt 0:01:30]} Ke8 {[%emt 0:11:30]} 23. Rab1 {[%emt 0:01:30]} Kf8 {[%emt 0:01:30]} 24. b5 {[%emt 0:01:30]} axb5 {[%emt 0:01:30]} 25. axb5 {[%emt 0:00:00]} d5 {[%emt 0:00:30]} 26. Be3 {[%emt 0:01:00]} Qd6 {[%emt 0:04:25]} 27. Ba7 {[%emt 0:00:30]} Rc8 {[%emt 0:00:31]} 28. Red1 {[%emt 0:02:30]} h4 {[%emt 0:01:36]} 29. Qe3 {[%emt 0:04:30]} hxg3 {[%emt 0:00:55]} 30. fxg3 {[%emt 0:00:30]} Rd8 {[%emt 0:09:37]} 31. c4 {[%emt 0:02:30]} d4 {[%emt 0:00:52]} 32. Qd3 {[%emt 0:00:00]} Ng5 {[%emt 0:02:22]} 33. h4 {[%emt 0:00:00]} Nge4 {[%emt 0:00:30]} 34. b6 {[%emt 0:06:30]} g6 {[%emt 0:02:55]} 35. c7 {[%emt 0:00:30]} Re8 {[%emt 0:00:27]} 36. b7 {[%emt 0:00:30]} Qxc7 {[%emt 0:01:11]} 37. b8=Q {[%emt 0:00:00]} Rxb8 {[%emt 0:00:04]} 38. Bxb8 {[%emt 0:00:00]} Qc6 {[%emt 0:00:20]} 39. Be5 {[%emt 0:01:30]} Qe6 {[%emt 0:00:23]} 40. Bxf6 {[%emt 0:00:00]} Nxf6 {[%emt 0:00:00]} 41. Rb8+ {[%emt 0:01:00]} Ne8 {[%emt 0:00:52]} 42. Qxd4 {[%emt 0:01:30]} Rh5 {[%emt 0:04:30]} 43. Qe4 {[%emt 0:06:30]} Bc5+ {[%emt 0:02:30]} 44. Kh2 {[%emt 0:00:30]} Re5 {[%emt 0:00:30]} 45. Qc6 {[%emt 0:00:30]} Qxc4 {[%emt 0:06:24]} 46. Rdd8 {[%emt 0:01:30]} Qe2 {[%emt 0:04:26]} 47. Rxe8+ {[%emt 0:00:30]} Rxe8 {[%emt 0:00:09]} 48. Qxc5+ {[%emt 0:00:30]} Kg8 {[%emt 0:00:00]} 49. Qb5 {[%emt 0:00:30]} Qxb5 {[%emt 0:01:23]} 50. Rxb5 {[%emt 0:00:00]} Re2 {[%emt 0:00:00]} 51. Rb7 {[%emt 0:00:00]} Kg7 {[%emt 0:00:05]} 52. Kg1 {[%emt 0:00:30]} Rd2 {[%emt 0:00:11]} 53. Bc6 {[%emt 0:01:30]} Rd8 {[%emt 0:00:45]} 54. Rd7 {[%emt 0:00:30]} Rf8 {[%emt 0:01:16]} 55. Bd5 {[%emt 0:00:00]} Kf6 {[%emt 0:00:00]} 56. Kg2 {[%emt 0:00:00]} g5 {[%emt 0:10:08]} 57. Rxf7+ {[%emt 0:00:30]} Rxf7 {[%emt 0:01:02]} 58. hxg5+ {[%emt 0:00:30]} Kg6 {[%emt 0:01:18]} 59. Bxf7+ {[%emt 0:00:30]} Kxf7 {[%emt 0:00:00]} 60. Kf3 {[%emt 0:00:00]} Kg6 {[%emt 0:00:09]} 61. Kg4 {[%emt 0:00:00]} Kg7 {[%emt 0:00:00]} 62. Kf5 {[%emt 0:00:00]} Kf7 {[%emt 0:00:15]} 63. g6+ {[%emt 0:00:00]} Kg7 {[%emt 0:00:11]} 64. Kg5 {[%emt 0:00:00]} Kg8 {[%emt 0:00:03]} 65. Kf6 {[%emt 0:00:00]} Kh8 {[%emt 0:01:05]} 66. g7+ {[%emt 0:00:00]} Kg8 {[%emt 0:00:09]} 67. g4 {[%emt 0:00:00]} Kh7 {[%emt 0:00:00]} 68. Kf7 {[%emt 0:00:30]} Kh6 {[%emt 0:00:08]} 69. g8=R {[%emt 0:00:00]} 1-0